bitfinex/quotes_ETHUSD_20240828
["timestamp","ask_amount","ask_price","bid_price","bid_amount"]
[1724859680090,4.00173,2499.0,2498.4,4.00255]
[1724859680391,4.00196,2498.8,2498.3,0.806545]
[1724859680591,4.00196,2498.8,2498.2,4.00276]
[1724859680894,4.00196,2498.8,2498.3,0.55]
[1724859681733,8.00401,2498.8,2498.3,0.55]
[1724859681935,0.09207487,2498.7,2498.3,0.55]
[1724859682228,4.00233,2498.6,2498.2,0.55]
[1724859682404,0.09207487,2498.5,2498.2,0.55]
[1724859682605,4.00233,2498.6,2498.2,0.55]
[1724859682795,4.00233,2498.6,2498.2,1.235493]
[1724859682990,4.00199,2498.8,2498.3,0.06803565]
[1724859683191,4.00199,2498.8,2498.4,0.55]
[1724859683518,4.09375487,2499.0,2498.5,2.4986]
[1724859683519,4.00168,2499.0,2498.5,2.4986]
[1724859683829,4.09375487,2499.0,2498.5,3.148714]
[1724859684002,7.00099,2499.4,2498.2,3.0486]
[1724859684003,4.00223,2498.7,2498.2,3.0486]
[1724859684342,4.00222,2498.7,2498.2,3.0486]
[1724859684634,4.00147,2499.1,2498.3,0.06803687]
[1724859684801,4.00174,2499.0,2498.4,4.00244]
[1724859685129,4.00174,2499.0,2498.5,0.55]
[1724859685646,3.0,2499.4,2498.8,4.00183]
[1724859685799,4.00088,2499.5,2498.9,0.63002263]
[1724859686000,4.00057,2499.7,2499.2,2.4911]
[1724859686230,0.09207487,2499.6,2499.2,2.4911]
[1724859686707,4.09272487,2499.6,2499.2,2.4911]
[1724859687038,0.09207487,2499.6,2499.2,2.4911]
[1724859687244,4.00057,2499.7,2499.2,6.49228]
[1724859687403,4.00057,2499.7,2499.3,0.55]
[1724859688235,8.00113,2499.7,2499.3,0.55]
[1724859688436,8.09320487,2499.7,2499.3,0.55]
[1724859688655,4.00089,2499.5,2499.2,2.4911]
[1724859688805,4.00104,2499.4,2498.9,2.3118]
[1724859689149,4.00131,2499.2,2498.9,2.3118]
[1724859689301,4.00104,2499.4,2498.9,2.3118]
[1724859689495,8.00213,2499.4,2498.9,2.3118]
[1724859689742,4.00116,2499.3,2498.9,2.3118]
[1724859689901,8.00213,2499.4,2498.9,2.3118]
[1724859690101,8.00209,2499.4,2498.9,2.3118]
[1724859690319,4.00104,2499.4,2498.9,2.3118]
[1724859690554,8.00215,2499.4,2499.0,0.10426363]
[1724859690861,4.00104,2499.4,2499.0,0.10426363]
[1724859691055,3.0,2500.0,2499.0,0.10426363]
[1724859691056,4.00069,2499.6,2499.0,0.10426363]
[1724859691357,4.00069,2499.6,2499.1,4.55142]
[1724859691569,4.09289487,2499.5,2499.1,0.55]
[1724859691860,4.09289487,2499.5,2498.9,6.31345]
[1724859691861,4.00126,2499.3,2499.2,0.10409834]
[1724859692155,4.00126,2499.3,2498.9,2.3118]
[1724859692353,4.00153,2499.1,2498.6,4.00223]
[1724859692514,4.00153,2499.1,2498.7,4.00207]
[1724859692713,8.00306,2499.1,2498.6,0.70023]
[1724859692966,4.00162,2499.0,2498.5,2.4334]
[1724859693120,4.00162,2499.0,2498.5,10.43808]
[1724859693324,2.4978,2499.6,2498.5,10.43808]
[1724859693325,2.4978,2499.9,2498.5,2.4334]
[1724859693520,3.09207487,2499.6,2498.6,7.3]
[1724859693719,0.09207487,2499.6,2498.8,4.00191]
[1724859694036,4.00096,2499.4,2498.9,4.00175]
[1724859694359,4.09281487,2499.6,2498.9,4.00175]
[1724859694360,4.00091,2499.5,2499.0,6.98499]
[1724859694660,4.00091,2499.5,2499.0,10.98651]
[1724859694863,4.09281487,2499.6,2499.1,4.00143]
[1724859695155,4.09281487,2499.6,2499.2,0.55]
[1724859695457,4.00082,2499.5,2499.2,0.55]
[1724859695627,4.00082,2499.5,2499.1,0.55]
[1724859695821,8.09358487,2499.6,2499.1,0.55]
[1724859696022,8.09358487,2499.6,2499.1,4.55143]
[1724859696253,4.00083,2499.5,2499.1,0.55]
[1724859696555,4.00074,2499.6,2499.1,0.55]
[1724859696766,4.00074,2499.6,2499.1,1.3285346]
[1724859697065,8.00233,2499.3,2499.0,2.4334]
[1724859697229,4.09295487,2499.5,2499.0,2.4334]
[1724859697436,4.00103,2499.4,2499.0,2.4334]
[1724859698560,8.09385487,2499.5,2499.0,6.43499]
[1724859698769,4.09295487,2499.5,2499.0,6.43499]
[1724859699054,4.00088,2499.5,2499.0,6.43499]
[1724859699263,4.09284487,2499.6,2499.1,4.00132]
[1724859699431,4.00008,2500.0,2499.3,4.00104]
[1724859699432,4.00011,2500.0,2499.3,4.00104]
[1724859699631,4.09232487,2499.9,2499.4,1.005104]
[1724859699953,0.09207487,2499.9,2499.4,4.55093]
[1724859700777,4.09224487,2499.9,2499.4,4.55093]
[1724859701099,0.09207487,2499.9,2499.4,4.55093]
[1724859701395,0.09207487,2499.9,2499.4,5.406126]
[1724859704105,0.09207487,2499.9,2499.5,4.00079]
[1724859704806,0.09207487,2499.9,2499.5,8.00158]
[1724859704990,0.09207487,2500.1,2499.6,0.55]
[1724859705224,4.09195487,2500.1,2499.5,6.26956]
[1724859705395,4.09195487,2500.1,2499.5,10.27025]
[1724859705593,4.09195487,2500.1,2499.6,0.10338272]
[1724859705799,8.09189487,2500.1,2499.6,0.10338272]
[1724859706315,4.09195487,2500.1,2499.6,0.10338272]
[1724859706480,0.09207487,2500.1,2499.6,0.10338272]
[1724859706689,4.0004,2499.8,2499.3,8.00203]
[1724859706878,0.09207487,2499.9,2499.7,0.10330012]
[1724859707076,0.09207487,2499.9,2499.3,4.001]
[1724859707275,3.99962,2500.3,2499.8,4.10351752]
[1724859707500,3.99962,2500.3,2499.8,4.0003]
[1724859707692,3.99962,2500.3,2499.8,8.0006]
[1724859707892,0.09207487,2500.2,2499.9,0.10313493]
[1724859708399,8.09153487,2500.2,2499.9,0.10313493]
[1724859708712,8.09153487,2500.2,2499.6,6.48363]
[1724859708713,8.09156487,2500.2,2499.6,6.48363]
[1724859708877,3.99985,2500.1,2500.0,0.10268601]
[1724859709222,4.00075,2499.6,2499.0,4.00149]
[1724859709422,3.0,2500.0,2499.4,4.00096]
[1724859709706,0.09207487,2499.9,2499.4,2.3196]
[1724859709908,0.09207487,2500.1,2499.6,4.00052]
[1724859710234,4.09200487,2500.1,2499.6,4.00052]
[1724859710518,4.09200487,2500.1,2499.1,7.102049]
[1724859710519,0.80127536,2500.1,2499.1,7.102049]
[1724859710817,4.00048,2499.7,2499.2,4.00119]
[1724859710971,0.09207487,2499.6,2499.1,6.46994]
[1724859711169,0.09207487,2499.6,2498.9,8.00329]
[1724859711170,4.0008,2499.5,2498.9,8.00329]
[1724859711412,0.09207487,2499.4,2499.0,4.00151]
[1724859711984,0.09207487,2499.4,2498.9,4.00164]
[1724859712312,0.09207487,2499.4,2498.8,2.4686]
[1724859712313,4.00113,2499.3,2498.8,2.4686]
[1724859712492,4.00145,2499.1,2498.6,4.00215]
[1724859712694,4.00186,2498.9,2498.4,2.4602]
[1724859712900,0.09207487,2498.8,2498.4,2.4602]
[1724859714112,4.00128,2499.2,2498.7,4.00201]
[1724859714281,4.09329487,2499.3,2498.7,4.00201]
[1724859714282,0.09207487,2499.1,2498.7,4.00201]
[1724859714488,3.0,2499.3,2498.9,4.00175]
[1724859714785,7.00097,2499.4,2498.9,4.00175]
[1724859714987,7.00096,2499.4,2498.9,4.0017]
[1724859715171,3.0,2499.4,2498.9,4.0017]
[1724859715379,2.427,2499.7,2498.9,4.0017]
[1724859715380,0.41885746,2499.3,2499.0,2.2855]
[1724859715616,4.00058,2499.7,2499.0,2.2855]
[1724859715617,4.09281487,2499.6,2499.0,6.28706]
[1724859715819,4.00074,2499.6,2499.0,6.28706]
[1724859716039,0.09207487,2499.5,2499.0,6.28701]
[1724859716179,4.400638,2499.7,2499.2,4.00125]
[1724859716825,4.400638,2499.7,2499.0,6.92371372]
[1724859716826,0.09207487,2499.6,2499.0,10.28845]
[1724859716990,4.00082,2499.5,2499.0,6.28694]
[1724859717180,0.09207487,2499.4,2499.0,6.28694]
[1724859717379,0.09207487,2499.5,2499.1,4.00143]
[1724859718207,4.00058,2499.7,2499.2,4.00125]
[1724859718416,0.09207487,2499.6,2499.2,4.00125]
[1724859718725,4.00026,2499.9,2499.4,4.00088]
[1724859719042,4.00032,2499.8,2499.4,4.00088]
[1724859719195,4.00026,2499.9,2499.4,4.00088]
[1724859719398,8.00055,2499.9,2499.4,4.00088]
[1724859719602,8.0005,2499.9,2499.4,4.00088]
[1724859719914,4.00024,2499.9,2499.4,4.00087]
[1724859720254,0.09207487,2500.0,2499.5,10.38007]
[1724859720535,0.09207487,2500.0,2499.6,0.10300394]
[1724859720914,4.00016,2499.9,2499.6,0.10300394]
[1724859721113,0.09207487,2499.8,2499.4,4.00086]
[1724859721439,4.09239487,2499.8,2499.7,0.10292133]
[1724859721649,4.00064,2499.6,2499.1,6.3398]
[1724859721854,0.09207487,2499.5,2499.2,4.00126]
[1724859722014,0.09207487,2499.5,2499.1,6.3398]
[1724859722214,0.09207487,2499.8,2499.4,4.00086]
[1724859722420,6.99975,2500.2,2499.6,4.0006]
[1724859722620,0.09207487,2500.0,2499.6,4.0006]
[1724859722919,4.09208487,2500.0,2499.5,2.8465]
[1724859723251,4.00034,2499.8,2499.2,8.00234]
[1724859723555,4.00034,2499.8,2499.1,2.2965]
[1724859723556,0.09207487,2499.7,2499.3,8.00212]
[1724859723755,0.09207487,2499.7,2499.3,4.00102]
[1724859724053,0.09207487,2499.7,2499.3,5.030895]
[1724859724255,0.09207487,2499.7,2499.3,4.00101]
[1724859724467,0.09207487,2499.7,2499.2,4.0012]
[1724859724747,4.09266487,2499.7,2499.1,10.29915]
[1724859724958,4.00064,2499.6,2499.1,10.29917]
[1724859725156,4.09255487,2499.7,2499.2,4.00125]
[1724859725353,4.00066,2499.6,2499.1,10.29916]
[1724859725555,4.09293487,2499.5,2499.0,4.00155]
[1724859725757,8.00087,2499.8,2499.1,6.29781]
[1724859725921,8.00087,2499.8,2499.2,4.00113]
[1724859725922,0.09207487,2499.7,2499.2,4.00113]
[1724859726118,0.09207487,2499.7,2499.1,6.29781]
[1724859726323,4.00064,2499.6,2499.1,10.29913]
[1724859726518,0.09207487,2499.5,2499.1,6.29781]
[1724859726956,0.09207487,2499.6,2499.2,4.00122]
[1724859727163,0.09207487,2499.7,2499.3,4.00109]
[1724859727328,4.09258487,2499.7,2499.1,10.928911]
[1724859727533,0.09207487,2499.8,2499.3,4.00106]
[1724859727721,4.09246487,2499.8,2499.3,4.00106]
[1724859727918,4.00087,2499.5,2499.1,4.0014]
[1724859728119,0.09207487,2499.4,2499.1,4.0014]
[1724859728774,0.09207487,2499.4,2498.9,4.00168]
[1724859729065,4.09318487,2499.4,2498.9,4.00168]
[1724859729237,0.09207487,2499.5,2498.9,1.360798]
[1724859729569,4.00044,2499.8,2499.2,4.0012]
[1724859729743,4.00044,2499.8,2499.2,6.30366]
[1724859729744,4.09264487,2499.7,2499.2,6.30366]
[1724859730562,0.09207487,2499.7,2499.3,4.00111]
[1724859730867,0.09207487,2499.7,2499.0,4.0015]
[1724859731063,4.00087,2499.5,2499.0,4.5377298]
[1724859731262,4.00113,2499.3,2498.8,4.0019]
[1724859731470,0.09207487,2499.2,2498.8,4.00184]
[1724859731655,0.09207487,2499.2,2498.9,1.3656]
[1724859731964,0.09207487,2499.2,2498.9,4.00172]
[1724859732467,0.09207487,2499.3,2499.0,4.00159]
[1724859732773,0.09207487,2499.5,2499.0,2.4457]
[1724859732951,0.09207487,2499.8,2499.4,4.00085]
[1724859733131,2.3426,2500.0,2499.5,4.00079]
[1724859733132,4.00005,2500.0,2499.5,4.00079]
[1724859733462,4.00002,2500.0,2499.6,4.00062]
[1724859733667,4.00002,2500.0,2499.5,2.4457]
[1724859733853,4.00002,2500.0,2499.5,6.44645]
[1724859734472,3.99984,2500.1,2499.6,4.00056]
[1724859734639,4.09211487,2500.0,2499.5,6.44645]
[1724859735249,0.09207487,2500.0,2499.5,2.4457]
[1724859735554,4.00024,2499.9,2499.6,0.10315916]
[1724859735759,3.99995,2500.1,2499.6,4.10370916]
[1724859735940,3.99995,2500.1,2499.5,4.00066]
[1724859736279,3.99963,2500.3,2499.6,3.52306191]
[1724859736578,3.99952,2500.3,2499.8,4.00031]
[1724859736946,3.99952,2500.3,2499.9,0.1027872]
[1724859737332,4.699472,2500.3,2499.8,4.00031]
[1724859737569,3.0,2500.4,2500.0,0.10270461]
[1724859737911,3.99928,2500.5,2499.9,4.1029372]
[1724859738080,3.99928,2500.5,2500.1,0.10262203]
[1724859738231,3.99907,2500.6,2500.1,0.10262203]
[1724859738571,6.99897,2500.7,2500.2,3.99966]
[1724859738773,7.698867,2500.7,2500.2,3.99966]
[1724859739073,3.99872,2500.8,2500.3,4.10188689]
[1724859739433,7.99734,2500.9,2500.3,4.10187689]
[1724859739632,0.399865,2500.8,2500.3,0.10245689]
[1724859739871,3.99896,2500.7,2500.3,0.10245689]
[1724859740043,4.09103487,2500.7,2500.2,3.99963]
[1724859740251,4.09103487,2500.7,2500.0,2.2689]
[1724859740252,3.99924,2500.5,2500.3,0.10245689]
[1724859740434,3.99896,2500.7,2500.0,2.2689]
[1724859740769,0.09207487,2500.6,2500.1,0.10262203]
[1724859741188,3.99922,2500.5,2500.1,0.10262203]
[1724859741491,0.09207487,2500.4,2500.1,0.10262203]
[1724859741689,3.99952,2500.3,2500.1,0.10262203]
[1724859741887,0.09207487,2500.2,2499.8,4.00019]
[1724859742092,0.09207487,2500.2,2499.9,0.1027872]
[1724859742290,3.99922,2500.5,2500.0,3.99987]
[1724859742462,3.99922,2500.5,2500.1,0.10262203]
[1724859742893,3.99922,2500.5,2500.1,3.99983]
[1724859743091,3.99922,2500.5,2500.2,0.10253946]
[1724859743275,7.99854,2500.5,2500.2,0.10253946]
[1724859743481,0.09207487,2500.4,2500.0,2.3928]
[1724859743679,0.09207487,2500.4,2500.1,0.10262203]
[1724859743881,3.99922,2500.5,2500.1,0.10262203]
[1724859744083,0.09207487,2500.4,2500.1,0.10262203]
[1724859744297,3.99998,2500.1,2499.5,6.39347]
[1724859744592,0.09207487,2500.1,2499.7,4.00047]
[1724859744956,0.09207487,2500.1,2499.8,0.10286979]
[1724859745154,4.00009,2500.0,2499.8,0.10286979]
[1724859745374,4.09193487,2500.1,2499.6,4.00056]
[1724859745559,4.0,2500.0,2499.9,0.1027872]
[1724859745760,0.09207487,2500.1,2499.5,2.3928]
[1724859745956,4.09193487,2500.1,2499.9,0.1027872]
[1724859746191,3.99976,2500.2,2499.6,4.55054]
[1724859746371,4.09152487,2500.4,2500.0,0.10270461]
[1724859746569,0.09207487,2500.4,2499.9,4.00003]
[1724859746778,0.09207487,2500.4,2500.1,0.10262203]
[1724859746978,3.99927,2500.5,2500.0,4.10266461]
[1724859747190,3.99916,2500.6,2500.2,4.10181212]
[1724859747369,3.99916,2500.6,2500.1,0.1022247]
[1724859747711,3.99916,2500.6,2500.2,0.10214212]
[1724859747880,7.9976,2500.8,2500.2,4.10178212]
[1724859748203,7.698843,2500.7,2500.2,4.10178212]
[1724859748429,0.1226329,2501.1,2500.8,3.9987]
[1724859748568,0.1226329,2501.1,2500.9,4.39832]
[1724859748770,0.1226329,2501.1,2500.9,4.1000143]
[1724859749306,0.1226329,2501.1,2501.0,3.9984]
[1724859749682,0.1226329,2501.1,2501.0,4.09988178]
[1724859749890,0.1226329,2501.1,2501.0,0.10148178]
[1724859750824,4.1208729,2501.1,2501.0,0.10148178]
[1724859751120,4.21294777,2501.1,2500.6,6.27692]
[1724859751274,4.21294777,2501.1,2501.0,0.10148178]
[1724859751470,8.21128777,2501.1,2501.0,0.10148178]
[1724859751697,8.21128777,2501.1,2500.3,6.3757]
[1724859751698,3.99862,2500.9,2500.3,6.3757]
[1724859751917,0.09207487,2500.8,2500.4,0.101977]
[1724859752218,0.09207487,2500.8,2500.4,4.101197]
[1724859753111,3.99889,2500.7,2500.4,0.101977]
[1724859753315,3.99888,2500.7,2500.4,0.101977]
[1724859753516,0.09207487,2500.6,2500.4,0.101977]
[1724859753719,7.99736,2500.9,2500.4,0.101977]
[1724859753885,4.09089487,2500.8,2500.4,0.101977]
[1724859754078,3.99882,2500.8,2500.4,0.101977]
[1724859754301,4.09089487,2500.8,2500.4,0.101977]
[1724859754818,8.08900487,2501.0,2500.5,3.99911]
[1724859755038,4.09047487,2501.0,2500.5,7.99823]
[1724859755178,4.09047487,2501.0,2500.6,0.1018119]
[1724859756030,3.9986,2500.9,2500.4,4.6471197]
[1724859756327,3.9984,2501.0,2500.4,4.6471197]
[1724859756522,4.09047487,2501.0,2500.5,0.10189445]
[1724859756938,3.99873,2500.8,2500.5,0.10189445]
[1724859757102,0.09207487,2500.7,2500.1,3.99975]
[1724859757302,3.99882,2500.8,2500.2,4.10179212]
[1724859757512,4.09089487,2500.8,2500.3,3.99949]
[1724859757718,4.09089487,2500.8,2500.3,8.84898571]
[1724859757887,4.09089487,2500.8,2500.4,0.10143091]
[1724859758215,0.09207487,2500.9,2500.5,6.43764]
[1724859758413,0.09207487,2500.9,2500.5,2.4386]
[1724859758586,4.09047487,2501.0,2500.6,0.10084388]
[1724859759336,3.99877,2500.8,2500.6,0.10084388]
[1724859759498,0.09207487,2500.7,2500.6,0.10084388]
[1724859759687,3.99852,2501.0,2500.4,3.99933]
[1724859760033,4.09059487,2501.0,2500.5,0.5008036]
[1724859760187,0.21470777,2501.1,2500.6,3.99894]
[1724859760385,4.21295777,2501.1,2500.6,3.99894]
[1724859760589,0.21470777,2501.1,2500.7,2.39749931]
[1724859760824,0.1226329,2501.1,2500.7,6.39632931]
[1724859761027,3.99841,2501.0,2500.7,2.39749931]
[1724859761237,3.99872,2500.8,2500.7,0.10069931]
[1724859761438,0.09207487,2500.8,2500.7,0.10069931]
[1724859761600,4.09080487,2500.8,2500.3,7.3]
[1724859761933,4.09064487,2500.9,2500.3,13.05902]
[1724859762124,4.09064487,2500.9,2500.4,4.10016353]
[1724859762329,4.09064487,2500.9,2500.4,0.10090353]
[1724859762527,3.99887,2500.8,2500.4,0.10090353]
[1724859762839,8.08935487,2500.9,2500.4,5.64588588]
[1724859762993,3.99876,2500.8,2500.4,1.64657588]
[1724859763197,4.09083487,2500.8,2500.4,0.10090353]
[1724859763421,3.99889,2500.7,2500.4,0.10090353]
[1724859763806,7.99787,2500.7,2500.4,0.10090353]
[1724859764041,7.9984,2500.5,2500.4,0.10090353]
[1724859764330,12.08967487,2500.5,2500.4,0.10090353]
[1724859764540,11.09047487,2500.5,2500.4,0.10090353]
[1724859764709,3.9995,2500.4,2499.8,4.00016]
[1724859765028,4.09157487,2500.4,2499.9,4.09789315]
[1724859765229,0.41862996,2500.5,2500.0,7.10649532]
[1724859765465,3.99977,2500.2,2499.9,0.09783315]
[1724859765592,6.33208,2500.4,2500.1,0.09785989]
[1724859765794,6.33208,2500.4,2499.4,2.2968]
[1724859765795,3.99984,2500.1,2500.0,0.09478922]
[1724859766117,3.99984,2500.1,2499.4,2.2968]
[1724859766118,4.00036,2499.8,2499.4,2.2968]
[1724859766530,4.00068,2499.6,2499.0,10.3452]
[1724859766750,4.00068,2499.6,2499.1,1.03452]
[1724859767112,4.00106,2499.4,2499.0,2.3422]
[1724859767420,4.00121,2499.3,2498.6,4.00209]
[1724859767597,2.2667,2499.9,2498.7,0.400209]
[1724859767598,4.09335487,2499.2,2498.7,0.400209]
[1724859767793,4.00185,2498.9,2498.4,2.3422]
[1724859768076,4.00149,2499.1,2498.4,6.34462]
[1724859768192,4.00149,2499.1,2498.5,0.64246649]
[1724859768193,0.09207487,2499.0,2498.5,0.64246649]
[1724859768400,4.00118,2499.3,2498.6,4.00223]
[1724859768598,4.00118,2499.3,2498.5,0.64246649]
[1724859768599,0.09207487,2499.2,2498.5,0.64246649]
[1724859769017,0.09207487,2499.2,2498.4,6.42466033]
[1724859769018,4.00155,2499.1,2498.6,0.70671268]
[1724859769440,0.09207487,2499.0,2498.6,0.70671268]
[1724859769645,4.00118,2499.3,2498.6,0.786753]
[1724859769791,4.00118,2499.3,2498.7,2.3748]
[1724859770630,4.00118,2499.3,2498.8,0.55]
[1724859770836,4.00145,2499.1,2498.7,2.3748]
[1724859771131,4.00176,2498.9,2498.4,2.3748]
[1724859771335,0.09207487,2498.8,2498.5,0.55]
[1724859771539,0.09207487,2498.8,2498.4,3.75123139]
[1724859771708,4.09412487,2498.8,2498.4,2.3748]
[1724859771911,0.09207487,2498.8,2498.4,2.3748]
[1724859772505,4.0021,2498.7,2498.4,2.3748]
[1724859773642,4.0024,2498.5,2498.1,9.7744]
[1724859773936,4.0024,2498.5,2498.2,1.52744]
[1724859774602,4.00269,2498.4,2498.2,0.97744]
[1724859774795,4.0028,2498.3,2498.1,9.7744]
[1724859775110,4.00288,2498.2,2498.1,2.4744]
[1724859775309,4.09451487,2498.5,2497.8,2.4744]
[1724859775507,4.09451487,2498.5,2497.9,0.97744]
[1724859775750,4.00273,2498.3,2497.5,14.7844]
[1724859775962,4.00257,2498.4,2497.5,2.4744]
[1724859775963,8.00768,2497.6,2497.5,2.4744]
[1724859776972,4.00437,2497.3,2497.1,9.6935]
[1724859777178,8.00896,2497.2,2497.1,2.3935]
[1724859777381,8.00896,2497.2,2496.7,7.3]
[1724859777382,4.00512,2496.8,2496.7,9.6935]
[1724859777547,4.00512,2496.8,2496.7,4.59385]
[1724859777747,4.00512,2496.8,2496.7,2.39202405]
[1724859779787,4.00467,2497.1,2496.7,2.39202405]
[1724859779937,4.00451,2497.2,2496.8,0.55]
[1724859780137,4.00451,2497.2,2496.8,0.86929231]
[1724859780351,4.00467,2497.1,2496.8,0.7892024]
[1724859780537,4.00467,2497.1,2496.9,0.09646437]
[1724859780957,4.00443,2497.3,2496.9,0.09646437]
[1724859781175,4.00467,2497.1,2496.9,0.09646437]
[1724859781336,8.0096,2497.0,2496.9,0.09646437]
[1724859781739,4.0048,2497.0,2496.7,2.39202405]
[1724859781967,4.0048,2497.0,2496.9,0.09776713]
[1724859782164,4.00457,2497.2,2496.8,1.06705233]
[1724859782378,4.00457,2497.2,2496.9,0.45168473]
[1724859782535,4.00473,2497.1,2496.9,0.09776713]
[1724859783452,4.0048,2497.0,2496.9,0.09776713]
[1724859783685,4.00497,2496.9,2496.7,2.39202405]
[1724859783852,4.00466,2497.1,2496.7,2.39202405]
[1724859784766,0.09207487,2497.0,2496.6,7.3]
[1724859785052,4.00501,2496.9,2496.6,7.3]
[1724859785256,4.00512,2496.8,2496.6,7.3]
[1724859785443,4.00512,2496.8,2496.4,2.3749]
[1724859785777,4.00512,2496.8,2496.4,7.27619599]
[1724859785980,4.00456,2497.2,2496.6,4.00543]
[1724859786185,2.3885,2497.6,2496.4,7.35630357]
[1724859786186,4.00433,2497.3,2496.7,4.08536544]
[1724859786392,4.00433,2497.3,2496.8,6.4493928]
[1724859786556,4.0041,2497.5,2496.9,4.00488]
[1724859786742,4.0041,2497.5,2497.0,4.55479]
[1724859787088,4.0044,2497.3,2497.0,0.55]
[1724859787290,4.00409,2497.5,2497.0,4.55477]
[1724859787588,4.00409,2497.5,2497.0,5.31119493]
[1724859787744,4.00377,2497.7,2497.0,5.31119493]
[1724859787745,4.00357,2497.8,2497.2,2.3069]
[1724859787944,4.09583487,2497.7,2497.3,0.78869855]
[1724859788188,4.00376,2497.7,2497.3,0.55]
[1724859788349,0.09207487,2497.8,2497.2,2.3069]
[1724859788694,4.00378,2497.7,2497.2,2.3069]
[1724859788842,2.2875,2498.3,2497.6,4.00369]
[1724859788843,4.00299,2498.2,2497.6,4.00369]
[1724859789190,4.09526487,2498.1,2497.7,2.3069]
[1724859789647,4.00331,2498.0,2497.7,2.3069]
[1724859790042,4.00339,2497.9,2497.4,14.0982831]
[1724859790269,4.00339,2497.9,2497.5,0.55]
[1724859790478,4.00324,2498.0,2497.6,1.86523431]
[1724859790726,4.00324,2498.0,2497.5,0.63006978]
[1724859791639,4.00314,2498.1,2497.5,0.63006978]
[1724859791640,8.00633,2498.1,2497.5,4.63405978]
[1724859791825,8.00627,2498.1,2497.5,4.63405978]
[1724859792154,4.00359,2497.8,2497.4,9.6069]
[1724859792319,4.00385,2497.6,2497.4,7.3]
[1724859792502,4.00385,2497.6,2497.1,2.4884]
[1724859792704,0.09207487,2497.7,2497.1,2.4884]
[1724859793028,4.09546487,2497.9,2497.1,2.4884]
[1724859793229,11.00597,2498.2,2497.6,4.00381]
[1724859793537,11.00597,2498.2,2497.5,2.4304]
[1724859793538,4.00323,2498.0,2497.5,2.4304]
[1724859793751,4.00323,2498.0,2497.6,0.55]
[1724859793904,4.00334,2498.0,2497.6,0.55]
[1724859794508,4.00316,2498.1,2497.6,0.55]
[1724859794708,4.09488487,2498.3,2497.8,4.00342]
[1724859794941,4.09488487,2498.3,2497.6,0.61807352]
[1724859794942,4.00281,2498.3,2497.7,0.70643798]
[1724859795147,4.00281,2498.3,2497.6,0.61807352]
[1724859795148,4.00281,2498.3,2497.8,4.55341]
[1724859795306,8.00567,2498.3,2497.8,4.00341]
[1724859795513,4.09488487,2498.3,2497.9,0.09665392]
[1724859795713,8.09769487,2498.3,2497.9,0.09665392]
[1724859796016,4.0029,2498.2,2497.9,0.09665392]
[1724859796223,4.00281,2498.3,2497.9,0.09665392]
[1724859796537,4.09456487,2498.5,2498.0,7.07994333]
[1724859796851,0.09207487,2498.4,2498.0,7.07994333]
[1724859797048,4.00304,2498.1,2498.0,0.09645333]
[1724859797213,8.00608,2498.1,2498.0,0.09645333]
[1724859797410,4.00346,2497.9,2497.4,9.7304]
[1724859797721,0.09207487,2497.8,2497.4,9.7304]
[1724859797928,0.09207487,2497.8,2497.4,6.43455]
[1724859798247,4.00315,2498.1,2497.5,4.08400025]
[1724859798415,4.00315,2498.1,2497.5,4.00392]
[1724859798608,0.09207487,2498.2,2497.5,8.00779]
[1724859798816,4.00312,2498.1,2497.5,4.00387]
[1724859799011,4.00338,2497.9,2497.4,2.4304]
[1724859799256,4.00338,2497.9,2497.5,0.55]
[1724859800042,4.00283,2498.3,2497.6,4.0038]
[1724859800349,0.09207487,2498.2,2497.7,1.00538]
[1724859800659,4.00339,2497.9,2497.4,10.43858]
[1724859800957,4.0032,2498.0,2497.5,0.55]
[1724859801110,4.00386,2497.6,2497.0,12.006355]
[1724859801319,4.00361,2497.8,2497.2,4.00438]
[1724859801513,0.09207487,2497.7,2497.3,4.00431]
[1724859801941,0.09207487,2497.7,2497.2,4.00438]
[1724859801942,4.09576487,2497.7,2497.2,4.00438]
[1724859802350,4.09576487,2497.7,2497.2,4.00437]
[1724859802567,0.09207487,2497.8,2497.3,4.55431]
[1724859802770,4.00379,2497.7,2497.3,0.55]
[1724859803078,4.0041,2497.5,2497.1,2.411]
[1724859803227,0.09207487,2497.4,2497.1,2.411]
[1724859803430,4.09631487,2497.4,2497.1,2.411]
[1724859803658,0.09207487,2497.4,2496.9,7.3]
[1724859803865,4.09617487,2497.5,2497.0,4.00477]
[1724859804078,4.228,2499.1,2497.0,4.00477]
[1724859804079,4.00314,2498.1,2497.3,2.4169]
[1724859804228,4.00353,2497.8,2497.3,2.4169]
[1724859804429,4.00393,2497.6,2497.2,7.3]
[1724859804659,4.00393,2497.6,2497.2,1.93858059]
[1724859804866,4.00417,2497.4,2497.0,6.42155]
[1724859805180,4.00417,2497.4,2497.1,0.55]
[1724859805346,0.09207487,2497.3,2497.0,2.4169]
[1724859805530,4.00449,2497.2,2496.9,7.3]
[1724859806035,5.3423,2498.0,2496.9,7.3]
[1724859806240,8.00854,2497.4,2496.9,7.3]
[1724859806464,0.09207487,2497.7,2496.9,7.3]
[1724859806638,4.00387,2497.6,2497.1,4.00455]
[1724859806840,4.09576487,2497.7,2497.2,4.00447]
[1724859807039,4.00385,2497.6,2497.2,1.3199392]
[1724859807238,8.00782,2497.6,2497.1,6.28334]
[1724859807458,8.09989487,2497.6,2497.1,6.28334]
[1724859807627,8.00782,2497.6,2497.1,6.28334]
[1724859807832,8.00782,2497.6,2497.1,10.28798]
[1724859807833,4.00385,2497.6,2497.1,10.28798]
[1724859808070,4.00385,2497.6,2497.1,4.1005067]
[1724859808365,4.00449,2497.2,2496.9,7.3]
[1724859808671,4.00418,2497.4,2496.9,7.3]
[1724859808672,4.09625487,2497.4,2496.9,7.3]
[1724859809033,4.0048,2497.0,2496.9,7.3]
[1724859809343,4.0048,2497.0,2496.5,6.25949]